Cogmind - Beta 16.1 @@@ ROGUE MODE // 2026.04.24 @ 21:13:53 Player: Jgu1971 Result: Destroyed by G-34 Mercenary with Small Laser Performance ------------- Evolutions (1) 500 Regions Visited (3) 600 Robots Destroyed (16) 80 Value Destroyed (429) 429 Prototype IDs (0) 0 Alien Tech Used (0) 0 Bonus (17) 17 TOTAL SCORE: 1626 Bonus ------- Follower Combat Kills 186 Friendly Fire -169 Cogmind --------- Core Integrity 0/400 Matter 372/400 Energy 78/100 System Corruption 2% Temperature Cool (6) Movement Core (150) Ox2 Location -9/Storage Parts ------- > --- POWER (1) -------- (None) > --- PROPULSION (2) --- (None) > --- UTILITY (3) ------ Small Storage Unit Medium Matter Pod > --- WEAPON (3) ------- (None) > --- INVENTORY (8) ---- Improved Flight Unit Improved Flight Unit Medium Battery (150) Drone Bay (2/2) Peak State ------------ > --- POWER ------------ Light Ion Engine > --- PROPULSION ------- Aluminum Leg Aluminum Leg > --- UTILITY ---------- Small Storage Unit Medium Matter Pod Seismic Detector > --- WEAPON ----------- Assault Rifle Autogun Autogun > --- INVENTORY -------- Light Ion Engine Medium Battery Medium Laser Assault Rifle Rocket Launcher Rocket Launcher Rocket Launcher [Rating: 12] Favorites ----------- Power Light Ion Engine Engine Light Ion Engine Propulsion Aluminum Leg Leg Aluminum Leg Utility Small Storage Unit Device Seismic Detector Storage Small Storage Unit Protection Light Armor Plating Weapon Autogun Energy Gun Medium Laser Ballistic Gun Autogun Build | -11 -10 -9 -9 ------- Run | Yrd Mat Mat Sto Slots Evolved 2 | . . 2 . Power . | . . . . Propulsion . | . . . . Utility 1 | . . 1 . Weapon 1 | . . 1 . Parts Attached 13 | 6 4 1 2 Power 2 | 1 . . 1 Engine 2 | 1 . . 1 Core . | . . . . Reactor . | . . . . Propulsion 2 | 2 . . . Treads . | . . . . Leg 2 | 2 . . . Wheel . | . . . . Hover . | . . . . Flight . | . . . . Utility 4 | 1 1 1 1 Device 1 | . . 1 . Storage 2 | 1 1 . . Processor . | . . . . Hackware . | . . . . Protection 1 | . . . 1 Artifact . | . . . . Weapon 5 | 2 3 . . Energy Gun 1 | 1 . . . Energy Cannon . | . . . . Ballistic Gun 4 | 1 3 . . Ballistic Cannon . | . . . . Launcher . | . . . . Special Weapon . | . . . . Impact Weapon . | . . . . Slashing Weapon . | . . . . Piercing Weapon . | . . . . Special Melee Weapon . | . . . . Unidentified Prototypes . | . . . . Parts Lost 10 | . . . 10 Power 2 | . . . 2 Propulsion 2 | . . . 2 Utility 2 | . . . 2 Weapon 4 | . . . 4 Highest Loss Streak 10 | . . . 10 To Critical Strikes . | . . . . Average Backups 6 | 1 6 7 6 Power 1 | . 1 1 1 Propulsion . | . . . 1 Utility . | . . . 2 Weapon 3 | . 4 4 1 Tool/Special . | . . . . Unused Backups 9 | . 1 3 5 Power 1 | . . . 1 Propulsion 2 | . . . 2 Utility 2 | . . . 2 Weapon 4 | . 1 3 . Tool/Special . | . . . . Average Slot Usage (%) 91 | . 91 99 87 Engine 12 | . 14 11 9 Leg 24 | . 28 22 18 Device 4 | . . 11 9 Storage 20 | . 19 22 22 Ballistic Gun 28 | . 27 32 27 Peak Build Rating 12 | 6 10 12 12 Average Rating 9 | 4 8 11 10 On Entrance 6 | . 6 10 11 Avg Prop Armor Cover (%) . | . . . . Naked Turns . | . . . . Heaviest Build 19 | 12 16 19 19 Greatest Support 20 | 20 20 20 20 Greatest Overweight (x) 5 | 1 . . 5 Average Overweight (x) . | . . . . Largest Inventory Capacity 8 | 8 8 8 8 Average Capacity 7 | 7 8 8 8 Most Carried 8 | 5 8 8 8 Average Carried 6 | 1 6 7 6 Final Capacity 8 | 8 8 8 8 Final Carried 8 | 2 8 6 4 Class Distribution -------------------- 64% | Mutant 35% | Gunner Dominant Class ---------------- Mutant | -10/Materials Gunner | -9/Materials Gunner | -9/Storage Resources | -11 -10 -9 -9 ----------- Run | Yrd Mat Mat Sto Matter Collected 796 | 212 212 130 242 Remotely . | . . . . Salvage Created 585 | . 31 204 350 Parts 38 | . 1 14 23 Haulers Intercepted . | . . . . Recyclers Shooed . | . . . . Parts Field Recycled . | . . . . Retrieved Matter . | . . . . Parts Self-Destructed . | . . . . Prevented . | . . . . Parts Restored . | . . . . Kills | -11 -10 -9 -9 ------- Run | Yrd Mat Mat Sto Combat Hostiles Destroyed 12 | . 1 4 7 Guns 12 | . 1 4 7 Classes Destroyed 7 | . 1 2 4 Builder 1 | . . . 1 Mechanic 1 | . . . 1 Watcher 1 | . . 1 . Swarmer 2 | . . . 2 Grunt 5 | . 1 2 2 Protector 1 | . . . 1 Sentry 4 | . . 2 2 Thug 1 | . . . 1 Best Kill Streak 4 | . 1 3 4 Combat Bots Only 3 | . 1 2 3 Max Kills in Single Turn 1 | . 1 1 1 Gunslinging . | . . . . Exploded . | . . . . Melee . | . . . . Uniques/NPCs Destroyed . | . . . . Combat | -11 -10 -9 -9 -------- Run | Yrd Mat Mat Sto Hostile Shots Fired 124 | . 4 16 104 Missed 32 | . 1 7 24 Hits 92 | . 3 9 80 Projectile 92 | . 3 9 80 Critical Strikes 5 | . . . 5 Damage Taken 1335 | . 32 111 1192 Core 403 | . . 11 392 Absorbed by Shields . | . . . . Core Remaining (%) 100 | 100 100 . . Volleys Fired 44 | . 3 11 30 Largest 3 | . 2 3 3 Hottest 66 | . 46 66 66 Shots Fired 115 | . 6 33 76 Gun 115 | . 6 33 76 Cannon . | . . . . Launcher . | . . . . Special . | . . . . Kinetic 115 | . 6 33 76 Thermal . | . . . . Explosive . | . . . . Electromagnetic . | . . . . Robot Hit Streak 7 | . 3 6 7 Robot Miss Streak 3 | . 1 3 3 Penetration Max . | . . . . Secondary Targets 1 | . . . 1 Max Gunslinging Chain 1 | . . . 1 Shots Hit Robots 69 | . 4 20 45 Core Hits 33 | . 2 9 22 Critical Kills 1 | . . . 1 Critical Parts Destroyed . | . . . . Critical Strikes 1 | . . . 1 Destroy 1 | . . . 1 Melee Attacks . | . . . . Impact . | . . . . Slashing . | . . . . Piercing . | . . . . Sneak Attacks . | . . . . Combat Hostiles . | . . . . Follow-up Attacks . | . . . . Damage Inflicted 1097 | . 55 285 757 Guns 1097 | . 55 285 757 Cannons . | . . . . Explosions . | . . . . Melee . | . . . . Ramming . | . . . . Kinetic 1097 | . 55 285 757 Thermal . | . . . . Explosive . | . . . . Electromagnetic . | . . . . Impact . | . . . . Slashing . | . . . . Piercing . | . . . . Highest Corruption 2 | . 1 . 2 Average Corruption 1 | . 1 . 2 Corruption Purged . | . . . . Corruption Blocked . | . . . . Effects 1 | . . . 1 Energy Discharges 1 | . . . 1 Overload Shots . | . . . . Overflow Damage . | . . . . Projectiles . | . . . . Explosions . | . . . . Melee . | . . . . Knockbacks . | . . . . Impact . | . . . . Kinetic . | . . . . Secondary . | . . . . Self-Inflicted Damage . | . . . . Shots . | . . . . Rammed . | . . . . Targets Rammed . | . . . . Kicked . | . . . . Crushed . | . . . . Highest Temperature 73 | . 18 55 73 Average Temperature 24 | . 11 21 27 Received Heat Transfer 531 | . 18 39 474 Siege Activations . | . . . . Martial Activations . | . . . . Shielding Activations . | . . . . Robots Disrupted . | . . . . Combat Hostiles . | . . . . Robots Corrupted . | . . . . Combat Hostiles . | . . . . Parts Fried . | . . . . Impact Corruptions . | . . . . Robots Melted . | . . . . Combat Hostiles . | . . . . Parts Melted . | . . . . Heat Transferred . | . . . . Parts Sabotaged . | . . . . Parts Stolen . | . . . . Parts Stripped . | . . . . Power Chain Reactions . | . . . . Alert | -11 -10 -9 -9 ------- Run | Yrd Mat Mat Sto Maximum Alert Level 1 | . . . 1 Low Security (%) 91 | 100 100 100 68 Level 1 8 | . . . 31 Level 2 . | . . . . Level 3 . | . . . . Level 4 . | . . . . Level 5 . | . . . . High Security . | . . . . Max Security . | . . . . Peak Influence 279 | . 31 77 279 Initial 27 | . . 2 27 Average 41 | . 1 22 143 Influence Increases 531 | . 35 117 379 Destroy 0b10 Robot/C 380 | . 20 80 280 Destroy 0b10 Robot/NC 20 | . . 5 15 Destroy Leader 92 | . 10 32 50 Allied During Kill 31 | . . . 31 Successful Hack 6 | . 4 . 2 Destroy Structure 2 | . 1 . 1 Influence Decreases 372 | . 28 57 287 Entered New Map 45 | . . 5 40 Time Decay 207 | . 28 52 127 Lost Part 100 | . . . 100 Lost Ally 20 | . . . 20 Squads Dispatched 7 | . 2 2 3 Investigation 1 | . 1 . . Extermination . | . . . . Reinforcement 4 | . 1 2 1 Assault 2 | . . . 2 Garrison . | . . . . Intercept . | . . . . Searches Triggered . | . . . . Construction Impeded . | . . . . Haulers Reinforced . | . . . . Active Scanning Responses . | . . . . Cargo Convoy Interrupts . | . . . . Stealth | -11 -10 -9 -9 --------- Run | Yrd Mat Mat Sto Distress Signals 1 | . . . 1 Communications Jammed . | . . . . Distress Signals . | . . . . Times Spotted 34 | . 2 10 22 Peak Tracking Total 8 | . 1 7 8 Tactical Retreats . | . . . . Traps | -11 -10 -9 -9 ------- Run | Yrd Mat Mat Sto Traps Triggered 2 | . 1 . 1 Indirectly . | . . . . Trap Hack Attempts . | . . . . Triggered . | . . . . Disarmed . | . . . . Reprogrammed . | . . . . Reused . | . . . . Traps Extracted . | . . . . Installed . | . . . . Triggered . | . . . . Machines | -11 -10 -9 -9 ---------- Run | Yrd Mat Mat Sto Machines Disabled . | . . . . Max in Single Turn . | . . . . Machines Repaired . | . . . . Machines Dismantled . | . . . . Machines Sabotaged . | . . . . Overloaded Fab Kills . | . . . . Hacking | -11 -10 -9 -9 --------- Run | Yrd Mat Mat Sto Machines Accessed 3 | . 2 . 1 Terminals 2 | . 1 . 1 Fabricators . | . . . . Repair Stations . | . . . . Recycling Units 1 | . 1 . . Scanalyzers . | . . . . Garrison Access . | . . . . Total Hacks 4 | . 3 . 1 Successful 3 | . 2 . 1 Failed 1 | . 1 . . Catastrophic . | . . . . Database Lockouts . | . . . . Manual . | . . . . Terminals 3 | . 2 . 1 Fabricators . | . . . . Repair Stations . | . . . . Recycling Units 1 | . 1 . . Scanalyzers . | . . . . Garrison Access . | . . . . Terminal Hacks 2 | . 1 . 1 Open Door 1 | . . . 1 Locate Traps 1 | . 1 . . Fabricator Hacks . | . . . . Repair Station Hacks . | . . . . Recycling Unit Hacks 1 | . 1 . . Report Inventory 1 | . 1 . . Scanalyzer . | . . . . Garrison Access Hacks . | . . . . Unauthorized Hacks . | . . . . Terminals . | . . . . Fabricators . | . . . . Repair Stations . | . . . . Recycling Units . | . . . . Scanalyzers . | . . . . Garrison Access . | . . . . Data Cores Recovered . | . . . . Used . | . . . . Hacking Detections 2 | . 2 . . Full Trace Events . | . . . . Feedback Events . | . . . . Feedback Blocked . | . . . . Robot Schematics Acquired . | . . . . Robots Built . | . . . . Authchips . | . . . . Time . | . . . . Total Robot Build Rating . | . . . . Part Schematics Acquired . | . . . . Parts Built . | . . . . Authchips . | . . . . Time . | . . . . Total Part Build Rating . | . . . . Part Studies Acquired . | . . . . Parts Repaired . | . . . . Time . | . . . . Parts Recycled . | . . . . Recycled Matter . | . . . . Retrieved Matter . | . . . . Retrieved Components . | . . . . Parts Scanalyzed . | . . . . Part Schematics Acquired . | . . . . Parts Damaged . | . . . . Bothacking | -11 -10 -9 -9 ------------ Run | Yrd Mat Mat Sto Used RIF Installer . | . . . . Robots Hacked . | . . . . Non-combat . | . . . . Combat . | . . . . Robot Hacks Applied . | . . . . Relay Couplers Released . | . . . . Fabnet Peak Effective % . | . . . . Robots Rewired . | . . . . Allies Hacked . | . . . . Hacks Repelled . | . . . . Allies | -11 -10 -9 -9 -------- Run | Yrd Mat Mat Sto Total Allies 2 | . . . 2 Largest Group 2 | . . . 2 Highest-Rated Group 62 | . . . 62 Highest-Rated Ally 31 | . . . 31 Total Orders . | . . . . Ally Attacks 40 | . . . 40 Total Damage 514 | . . . 514 Kills 8 | . . . 8 Allies Corrupted . | . . . . Allies Melted . | . . . . Intel | -11 -10 -9 -9 ------- Run | Yrd Mat Mat Sto Active Infowar (turns) 422 | . . 169 253 Seismic 422 | . . 169 253 Robot Analysis Total . | . . . . Derelict Logs Recovered . | . . . . Drone Launches . | . . . . Drone Recoveries . | . . . . Exploration | -11 -10 -9 -9 ------------- Run | Yrd Mat Mat Sto Turns Passed 1133 | 79 587 169 298 Spaces Moved 800 | 55 472 110 163 Core 30 | 11 . . 19 Treads . | . . . . Legs 770 | 44 472 110 144 Wheels . | . . . . Hover . | . . . . Flight . | . . . . Fastest Speed 50 | 50 120 120 120 Average Speed 121 | 120 120 120 129 Slowest Speed 300 | 190 120 120 300 Overloaded Moves . | . . . . Propulsion Burnouts . | . . . . Robots Hopped . | . . . . Potential Cave-ins . | . . . . Cave-ins Triggered . | . . . . Exploration Rate (%) 23 | 3 60 7 22 Regions Visited 3 Branch Regions 1 Pre-discovered Areas . | . . . . Known Exits Taken . | . . . . Unknown Exits Taken 3 | 1 1 1 . Scrap Searched . | . . . . Spaces Dug . | . . . . Terrain Destroyed . | . . . . Melee . | . . . . Projectile . | . . . . AOE . | . . . . Terrain Rammed . | . . . . Walls Destroyed . | . . . . Machines Disabled . | . . . . Actions | -11 -10 -9 -9 --------- Run | Yrd Mat Mat Sto Total 885 | 68 488 128 201 Wait . | . . . . Move 797 | 54 471 109 163 Hop . | . . . . Pick Up 22 | 8 8 3 3 Fast Attach . | . . . . Attach 13 | 6 2 2 3 Detach 1 | . 1 . . Swap 2 | . 2 . . Drop 6 | . 1 3 2 Fire 44 | . 3 11 30 Melee . | . . . . Ram . | . . . . Kick . | . . . . Crush . | . . . . Escape Stasis . | . . . . Rewire . | . . . . Trap . | . . . . Miscellaneous . | . . . . Route ------- -11/Scrapyard -10/Materials (discovered 4 exits: [*Mat x3] / [*Min]) -9/Materials -9/Storage History --------- Turn | Location | Event 21 | -11/Scrapyard | Discovered new exit (range 15) 80 | -11/Scrapyard | Entered Materials 81 | -10/Materials | Met a group of wandering Federalists 311 | -10/Materials | Build established: Mutant 329 | -10/Materials | Discovered new exit (range 8) 376 | -10/Materials | Discovered new exit (range 15) 548 | -10/Materials | Discovered new exit (range 15) 601 | -10/Materials | Discovered new exit (range 11) 667 | -10/Materials | Entered another Materials area 667 | -9/Materials | Evolved 2 slots: Utility x1, Weapon x1 782 | -9/Materials | Discovered new exit (range 15) 836 | -9/Materials | Entered Storage 865 | -9/Storage | Met a pair of Derelict thieves 971 | -9/Storage | Build established: Gunner 1111 | -9/Storage | Core integrity fell below 50% 1121 | -9/Storage | Core integrity fell below 20% 1134 | -9/Storage | Destroyed by G-34 Mercenary with Small Laser Last Messages --------------- 01077_ A bubble of electromagnetic force engulfs the area. 01077_ Chain reaction triggered in Lgt. Ion Engine. 01077_ Autogun destroyed. 01082_ Aluminum Leg destroyed. 01088_ Assault Rifle destroyed. 01089_ Seismic Detector destroyed. 01091_ Critical hit (Burn: +37). 01098_ W-16 Scout suffers critical hit (Burn). 01104_ Lgt. Armor Plating destroyed. 01108_ U-05 Engineer lays Concrete. 01112_ Assault Rifle destroyed. 01113_ U-05 Engineer lays Concrete. 01116_ Critical hit (Burn: +37). 01116_ U-05 Engineer lays Concrete. 01119_ Ion Engine destroyed. 01119_ U-05 Engineer lays Concrete. 01121_ U-05 Engineer builds a Wall. 01132_ System corrupted: Energy discharge (-30). Map ----- +----------------------------------------------------+ | | | | | | | | | | | | | | | ?????????????????????????????????????????????????? | | ?????????????????????????????????????????????????? | | ?????????????????????????????????????????????????? | | ?????????????????????????????????????????????????? | | ?????????????????????????????????????????????????? | | ?????????????????????????????????????????????????? | | ?????????????????????????????????????????????????? | | ?????????????????????????????????????????????????? | | ?????????????????????????????????????????????????? | | ?????????????????????????????????????????????????? | | ?????????????????????????????????????????????????? | | ?????????????????????????????????????????????????? | | ?????????????????????????????????????????????????? | | ?????????????????????????????????????????????????? | | ?????????????????????????????????????????????????? | | ????????????????????+######??????????????????????? | | ????????????????????? #??????????????????????? | | ??????????????????????? #??????????????????????? | | ????????????????????????"@#??????????????????????? | | ????????????????????????" #??????????????????????? | | ????????????????????????" #??????????????????????? | | ???????????????????????""g#??????????????????????? | | ??????????????????????""g #??????????????????????? | | ?????????????????# """" #??????????????????????? | | ?????????????????# #??????????????????????? | | ?????????????????#####/####??????????????????????? | | ???????????????????# #???????????????????????? | | ???????????????????# ##### ###???????????????? | | ???????????????????# /????????????? | | ???????????????????# ##### ###???????????????? | | ???????????????????# = #???????????????????????? | | ???????????????????##!%!##?###+??????????????????? | | ????????????????????# #? ???????????????????? | | ??????????????????### # """ ???????????????????? | | ??????????????????" # # """ ??????????????????? | | ??????????????????" / + """ ??????????????????? | | ??????????????????" # # #????????????????? | | ??????????????????#T# # """ #????????????????? | | ????????????######## #?""" #????????????????? | | ????????????? " #?""" ? ????????????????? | | ????????????""" """ # #?? ????????????????????? | | ????????????""" """ # #????????????????????????? | | ?????????????"" """ +! %#????????????????????????? | +----------------------------------------------------+ Best States ------------- Heat Dissipation 28 Energy Generation 10 Energy Capacity 250 Matter Stores 400 Matter Capacity 400 Sight Range 16 Terrain Scan Density 10 Armor Coverage 150 Evasion (%) 55 Item Schematics ----------------- None Robot Schematics ------------------ None Fabricated ------------ Nothing Repaired ---------- Nothing Studied --------- None Alien Tech Used ----------------- None Achievements -------------- None Challenges ------------ None Game ------ Seed CarbidePlatingBlade Manual? 0 Play Time 00:22:48 Cumulative 7.0 hours Start 2026.04.24 @ 20:46:29 End 2026.04.24 @ 21:13:53 Sessions 1 Manual Loads 0 Difficulty Rogue Special Mode None Game No. 8 Rogue 8 Adventurer 0 Explorer 0 Win Type - Total 0 Types 0/0/0/0/0/0/0/0/0/0 Lore% 6 Gallery% 6 Achievement% 7 Wizard Run 0 Options --------- Layout 1 ASCII 0 Keyboard 0 Movement Arrows Keybinds 0 Fullscreen 1 Font 24/Tamsyn Map View 50x40 Zoom Use 0% Tactical HUD 1 Map Filters NONE Filters NONE Steam 1 RUN: d25ace66-293c-402b-a074-95057f9548ff